bitfinex/quotes_BTCUSD_20250108
["timestamp","ask_amount","ask_price","bid_price","bid_amount"]
[1736345210163,0.31351476,95595.0,95589.0,0.00015242]
[1736345210362,0.52273276,95595.0,95589.0,0.00015242]
[1736345210976,0.10429976,95590.0,95589.0,0.00015242]
[1736345211159,0.62702976,95590.0,95589.0,0.00015242]
[1736345212004,0.68546976,95590.0,95589.0,0.00015242]
[1736345212207,0.62902976,95590.0,95589.0,0.00015242]
[1736345212414,0.68746976,95590.0,95589.0,0.00015242]
[1736345212763,0.63402976,95590.0,95589.0,0.00115242]
[1736345212972,0.63202976,95590.0,95589.0,0.08435242]
[1736345213301,0.63202976,95590.0,95589.0,0.10956763]
[1736345213913,0.52773,95590.0,95589.0,0.31879663]
[1736345214125,0.52273,95590.0,95589.0,0.31779663]
[1736345214330,0.52673,95590.0,95589.0,0.31779663]
[1736345214700,0.52473,95590.0,95589.0,0.31779663]
[1736345215268,0.52273,95590.0,95589.0,0.32079663]
[1736345215680,0.52273,95590.0,95589.0,0.32279663]
[1736345216070,0.62702976,95590.0,95589.0,0.11356763]
[1736345216273,0.52273,95590.0,95589.0,0.11356763]
[1736345218629,0.52260417,95590.0,95589.0,0.11356763]
[1736345219588,0.52260417,95590.0,95589.0,0.1038948]
[1736345220427,0.52260417,95590.0,95589.0,0.1008948]
[1736345220804,0.52260417,95590.0,95589.0,0.0988948]
[1736345221013,0.52260417,95590.0,95589.0,0.1008948]
[1736345223221,0.52260417,95590.0,95589.0,0.1048948]
[1736345223867,0.52260417,95590.0,95589.0,0.1547948]
[1736345224070,0.52260417,95590.0,95589.0,0.3047948]
[1736345225130,0.52260417,95590.0,95589.0,0.3027948]
[1736345225340,0.62690393,95590.0,95589.0,0.1567948]
[1736345225539,0.62690393,95590.0,95589.0,0.3660238]
[1736345225858,0.68494393,95590.0,95589.0,0.3660238]
[1736345226729,0.68494393,95590.0,95589.0,0.3620238]
[1736345226960,0.68594393,95590.0,95589.0,0.3700238]
[1736345227146,0.68594393,95590.0,95589.0,0.0276948]
[1736345227348,0.70898663,95590.0,95589.0,0.0196948]
[1736345227603,0.83198663,95590.0,95589.0,0.00315242]
[1736345227983,0.77394663,95590.0,95589.0,0.00115242]
[1736345228219,0.80894393,95590.0,95589.0,0.00115242]
[1736345228328,0.80894393,95590.0,95589.0,0.00015242]
[1736345228536,0.20927,95570.0,95563.0,0.0001702]
[1736345228770,0.16233976,95570.0,95569.0,0.00032265]
[1736345229391,0.32680888,95578.0,95577.0,0.209255]
[1736345229606,0.43110864,95578.0,95577.0,0.3100805]
[1736345229809,0.32680888,95578.0,95577.0,0.30472553]
[1736345231289,0.52260417,95590.0,95589.0,0.209229]
[1736345231492,0.52260417,95590.0,95589.0,0.286729]
[1736345231736,0.52260417,95590.0,95589.0,0.30227138]
[1736345232143,0.52260417,95590.0,95589.0,0.33249852]
[1736345232325,0.52260417,95590.0,95589.0,0.35207138]
[1736345232557,0.52260417,95590.0,95589.0,0.35407138]
[1736345233158,0.52260417,95590.0,95589.0,0.50207138]
[1736345233357,0.28988917,95590.0,95589.0,0.50207138]
[1736345233590,0.29088917,95590.0,95589.0,0.51007138]
[1736345233743,0.05804,95625.0,95589.0,0.50607138]
[1736345233949,0.05804,95625.0,95617.0,0.209166]
[1736345233950,0.10429976,95624.0,95617.0,0.209166]
[1736345234148,0.10429976,95624.0,95622.0,0.209156]
[1736345234350,0.10429976,95624.0,95619.0,0.209163]
[1736345234730,0.05804,95624.0,95619.0,0.209163]
[1736345234980,0.05804,95624.0,95621.0,0.209159]
[1736345235178,0.05804,95624.0,95621.0,0.418318]
[1736345235179,0.05154,95624.0,95621.0,0.418318]
[1736345235387,8.54e-05,95629.0,95628.0,0.209143]
[1736345235592,0.10453749,95629.0,95628.0,0.209143]
[1736345235822,0.10453749,95629.0,95628.0,0.22459394]
[1736345236844,0.10453749,95629.0,95628.0,0.22559394]
[1736345237693,0.00023773,95629.0,95628.0,0.22559394]
[1736345237897,0.00023773,95629.0,95628.0,0.22859394]
[1736345238009,0.00023773,95629.0,95628.0,0.22459394]
[1736345239281,0.00023773,95629.0,95628.0,0.22659394]
[1736345239491,0.00023773,95629.0,95628.0,0.23059394]
[1736345239904,0.00023773,95629.0,95628.0,0.22459394]
[1736345240148,0.00023773,95629.0,95628.0,0.22959394]
[1736345240350,0.00023773,95629.0,95628.0,0.23159394]
[1736345240586,0.10453749,95629.0,95628.0,0.23159394]
[1736345241000,0.00023773,95629.0,95628.0,0.38159394]
[1736345241192,0.00023773,95629.0,95628.0,0.37959394]
[1736345241728,0.00023773,95629.0,95628.0,0.37459394]
[1736345242566,0.00023773,95629.0,95628.0,0.37217938]
[1736345243431,0.00023773,95629.0,95628.0,0.37017938]
[1736345243857,0.00023773,95629.0,95628.0,0.37317938]
[1736345244477,0.00023773,95629.0,95628.0,0.22317938]
[1736345244778,0.10453749,95629.0,95628.0,0.22317938]
[1736345245359,0.10453749,95629.0,95628.0,0.22817938]
[1736345245725,0.10453749,95629.0,95628.0,0.22317938]
[1736345246136,0.10453749,95629.0,95628.0,0.22017938]
[1736345246494,0.10453749,95629.0,95628.0,0.22217938]
[1736345246916,0.10453749,95629.0,95628.0,0.22017938]
[1736345247117,0.10453749,95629.0,95628.0,0.22417938]
[1736345247320,0.10453749,95629.0,95628.0,0.22617938]
[1736345247529,0.10453749,95629.0,95628.0,0.22217938]
[1736345247775,0.10453749,95629.0,95628.0,0.22017938]
[1736345247986,0.10453749,95629.0,95628.0,0.22317938]
[1736345248750,0.10453749,95629.0,95628.0,0.22017938]
[1736345249125,0.00023773,95629.0,95628.0,0.22417938]
[1736345249302,0.00023773,95629.0,95628.0,0.22617938]
[1736345249877,0.00023773,95629.0,95628.0,0.22417938]
[1736345250276,0.00023773,95629.0,95628.0,0.22717938]
[1736345250774,0.00023773,95629.0,95628.0,0.21510538]
[1736345250980,0.00023773,95629.0,95628.0,0.29030538]
[1736345251213,0.00023773,95629.0,95628.0,0.43330538]
[1736345251612,0.00023773,95629.0,95628.0,0.43830538]
[1736345252370,0.00023773,95629.0,95628.0,0.43330538]
[1736345252922,0.00123773,95629.0,95628.0,0.44030538]
[1736345253879,0.00123773,95629.0,95628.0,0.44330538]
[1736345254304,0.00123773,95629.0,95628.0,0.09323638]
[1736345254305,0.10553749,95629.0,95628.0,0.09323638]
[1736345254508,0.10553749,95629.0,95628.0,0.01803638]
[1736345254713,0.10553749,95629.0,95628.0,0.012]
[1736345255217,0.10553749,95629.0,95628.0,0.02165683]
[1736345255398,0.10453749,95629.0,95628.0,0.00965683]
[1736345255793,0.10553749,95629.0,95628.0,0.013]
[1736345256248,0.10453749,95629.0,95628.0,0.01365683]
[1736345256623,0.10453749,95629.0,95628.0,0.01465683]
[1736345256985,0.10453749,95629.0,95628.0,0.00965683]
[1736345257438,0.10453749,95629.0,95624.0,0.20915]
[1736345257638,0.00023773,95629.0,95628.0,0.01065683]
[1736345257853,0.10453749,95629.0,95628.0,0.01065683]
[1736345257991,0.10453749,95629.0,95628.0,0.001]
[1736345258194,0.10453749,95629.0,95628.0,0.00772547]
[1736345258392,0.10453749,95629.0,95628.0,0.002]
[1736345258605,0.10453749,95629.0,95628.0,0.00972547]
[1736345258818,0.16256154,95629.0,95628.0,0.002]
[1736345259278,0.10453749,95629.0,95628.0,0.002]
[1736345259605,0.209143,95628.0,95624.0,0.001]
[1736345259805,0.10429976,95627.0,95624.0,0.001]
[1736345260008,0.209148,95626.0,95624.0,0.001]
[1736345260265,0.10429976,95625.0,95624.0,0.001]
[1736345260667,0.10429976,95625.0,95615.0,0.20917]
[1736345260874,0.10429976,95625.0,95624.0,0.00773015]
[1736345261085,0.10429976,95625.0,95609.0,0.01068063]
[1736345261278,0.10429976,95625.0,95611.0,0.15]
[1736345261482,0.05744,95624.0,95622.0,0.209156]
[1736345261717,0.10429976,95623.0,95622.0,0.209156]
[1736345261959,0.10429976,95623.0,95622.0,0.2168885]
[1736345264199,0.10429976,95623.0,95622.0,0.0077325]
[1736345264607,0.10429976,95623.0,95614.0,0.15]
[1736345264829,0.10429976,95623.0,95622.0,0.0097325]
[1736345265038,0.10429976,95623.0,95622.0,0.003]
[1736345265642,0.10429976,95623.0,95622.0,0.002]
[1736345265890,0.10429976,95623.0,95622.0,0.0440334]
[1736345266099,0.16173976,95623.0,95622.0,0.0097325]
[1736345267880,0.16173976,95623.0,95622.0,0.0077325]
[1736345268170,0.16173976,95623.0,95619.0,0.418324]
[1736345268323,0.16173976,95623.0,95622.0,0.0077325]
[1736345268526,0.16173976,95623.0,95619.0,0.418324]
[1736345268742,0.16273976,95623.0,95622.0,0.0077325]
[1736345269031,0.16273976,95623.0,95619.0,0.418324]
[1736345269226,0.16173976,95623.0,95622.0,0.0077325]
[1736345269433,0.16173976,95623.0,95622.0,0.001]
[1736345270040,0.16173976,95623.0,95622.0,0.0077325]
[1736345270356,0.16173976,95623.0,95619.0,0.211162]
[1736345270844,0.16173976,95623.0,95620.0,0.00773484]
[1736345271051,0.16173976,95623.0,95622.0,0.001]
[1736345271485,0.16173976,95623.0,95622.0,0.0087325]
[1736345271660,0.16173976,95623.0,95622.0,0.001]
[1736345272300,0.16173976,95623.0,95622.0,0.0087325]
[1736345273053,0.16173976,95623.0,95622.0,0.0077325]
[1736345273630,0.16173976,95623.0,95622.0,0.0087325]
[1736345273838,0.16173976,95623.0,95622.0,0.001]
[1736345274018,0.16173976,95623.0,95622.0,0.0077325]
[1736345274234,0.16173976,95623.0,95619.0,0.209163]
[1736345274436,0.16173976,95623.0,95622.0,0.0087325]
[1736345274640,0.16173976,95623.0,95622.0,0.002]
[1736345274840,0.16173976,95623.0,95622.0,0.001]
[1736345275001,0.16173976,95623.0,95622.0,0.0097325]
[1736345275203,0.16173976,95623.0,95622.0,0.002]
[1736345275404,0.16173976,95623.0,95622.0,0.0097325]
[1736345275598,0.16173976,95623.0,95622.0,0.002]
[1736345275800,0.16173976,95623.0,95622.0,0.0097325]
[1736345276039,0.16119201,95623.0,95622.0,0.002]
[1736345276200,0.16119201,95623.0,95622.0,0.0097325]
[1736345276389,0.16119201,95623.0,95622.0,0.001]
[1736345276607,0.16119201,95623.0,95622.0,0.0087325]
[1736345276815,0.16119201,95623.0,95622.0,0.001]
[1736345277009,0.16119201,95623.0,95622.0,0.0087325]
[1736345277752,0.16119201,95623.0,95622.0,0.001]
[1736345278131,0.16119201,95623.0,95622.0,0.0087325]
[1736345279660,0.16119201,95623.0,95622.0,0.001]
[1736345283528,0.209157,95622.0,95601.0,0.2092]
[1736345283741,0.10429976,95621.0,95606.0,0.00775125]
[1736345283942,0.209161,95620.0,95606.0,0.21694225]
[1736345284139,0.10429976,95619.0,95610.0,0.209181]
[1736345284460,0.10429976,95619.0,95611.0,0.00774539]
[1736345285651,0.31346276,95619.0,95611.0,0.00774539]
[1736345285869,0.10429976,95619.0,95611.0,0.00774539]
[1736345286087,0.209165,95618.0,95601.0,0.2092]
[1736345286286,0.10429976,95617.0,95601.0,0.2092]
[1736345286537,0.10429976,95617.0,95603.0,0.209198]
[1736345286748,0.10429976,95617.0,95597.0,0.21947031]
[1736345286960,0.209171,95616.0,95604.0,0.0077536]
[1736345287129,0.10429976,95615.0,95605.0,0.209194]
[1736345287338,0.10429976,95615.0,95606.0,0.00775125]
[1736345287538,0.10429976,95615.0,95601.0,0.209201]
[1736345287749,0.10429976,95615.0,95602.0,0.00775594]
[1736345287949,0.12612474,95611.0,95602.0,0.00775594]
[1736345288154,0.22729976,95603.0,95602.0,0.00775594]
[1736345288302,0.1,95601.0,95584.0,0.23256243]
[1736345288513,0.10429976,95598.0,95585.0,0.00777588]
[1736345288695,0.10429976,95598.0,95584.0,0.23256243]
[1736345288948,0.10429976,95598.0,95585.0,0.00777588]
[1736345289385,0.32680888,95596.0,95582.0,0.209243]
[1736345289639,0.10429976,95595.0,95586.0,0.209235]
[1736345290155,0.10429976,95595.0,95587.0,0.00777353]
[1736345290693,0.12612474,95590.0,95574.0,0.209261]
[1736345290919,0.12612474,95590.0,95570.0,0.284269]
[1736345290920,0.31353076,95588.0,95570.0,0.284269]
[1736345291128,0.209235,95586.0,95575.0,0.00739893]
[1736345291300,0.209235,95586.0,95570.0,0.075]
[1736345291301,0.10429976,95585.0,95570.0,0.075]
[1736345291509,0.05688,95584.0,95570.0,0.075]
[1736345291678,0.12612474,95580.0,95571.0,0.00740362]
[1736345291897,0.10429976,95579.0,95564.0,0.209283]
[1736345292275,0.10429976,95579.0,95570.0,0.0074048]
[1736345292478,0.03873045,95578.0,95570.0,0.0074048]
[1736345292681,0.43110864,95571.0,95557.0,0.0001702]
[1736345292888,0.37044976,95570.0,95557.0,0.0001702]
[1736345293306,0.49344976,95570.0,95557.0,0.0001702]
[1736345294522,0.92025864,95570.0,95557.0,0.0001702]
[1736345294723,1.0245584,95570.0,95557.0,0.0001702]
[1736345295406,1.1755584,95570.0,95557.0,0.0001702]
[1736345295534,0.559283,95564.0,95563.0,2e-07]
[1736345295735,0.68658276,95564.0,95563.0,2e-07]
[1736345296550,0.81028276,95564.0,95563.0,2e-07]
[1736345296760,0.71028276,95564.0,95563.0,2e-07]
[1736345296981,1.29037276,95564.0,95563.0,2e-07]
[1736345297183,1.39037276,95564.0,95563.0,2e-07]
[1736345297388,1.49467252,95564.0,95563.0,2e-07]
[1736345297542,1.8214814,95564.0,95563.0,2e-07]
[1736345297741,1.9785214,95564.0,95563.0,2e-07]
[1736345298579,1.9925214,95564.0,95563.0,0.0010002]
[1736345298993,1.9875214,95564.0,95563.0,0.0010002]
[1736345299206,1.88322164,95564.0,95563.0,0.0010002]
[1736345299414,1.88822164,95564.0,95563.0,0.0020002]
[1736345299626,1.87922164,95564.0,95563.0,0.0010002]
[1736345299835,1.88822164,95564.0,95563.0,0.0020002]
[1736345300039,1.91097925,95564.0,95563.0,0.0020002]
[1736345300903,1.88822164,95564.0,95563.0,0.0020002]
[1736345302595,1.83134164,95564.0,95563.0,0.0020002]
[1736345302795,1.88826164,95564.0,95563.0,0.0020002]
[1736345304543,1.63134164,95564.0,95563.0,0.0020002]
[1736345304752,1.66456164,95564.0,95563.0,0.0020002]
[1736345304931,1.76456164,95564.0,95563.0,0.0020002]
[1736345305370,1.66456164,95564.0,95563.0,0.0020002]
[1736345305575,1.64156164,95564.0,95563.0,0.0020002]
[1736345305805,1.58464164,95564.0,95563.0,0.0020002]
[1736345306054,1.77806713,95564.0,95563.0,0.0020002]
[1736345306494,1.80106713,95564.0,95563.0,0.0020002]
[1736345306699,1.79606713,95564.0,95563.0,0.0010002]
[1736345306904,1.79906713,95564.0,95563.0,0.0010002]
[1736345307110,1.79906713,95564.0,95563.0,2e-07]
[1736345307320,1.79606713,95564.0,95563.0,2e-07]
[1736345307526,1.79606713,95564.0,95557.0,0.0001702]
[1736345307739,0.45429976,95561.0,95557.0,0.0001702]
[1736345307948,0.47729976,95561.0,95557.0,0.0001702]
[1736345308150,1.00050976,95561.0,95557.0,0.0001702]
[1736345309157,0.582312,95551.0,95550.0,6e-07]
[1736345309384,1.20982176,95551.0,95550.0,6e-07]
[1736345309527,1.31412152,95551.0,95550.0,6e-07]
[1736345309727,1.28792176,95551.0,95550.0,6e-07]
[1736345310155,1.61473064,95551.0,95550.0,6e-07]
[1736345310352,0.88617288,95527.0,95513.0,0.0001704]
[1736345310557,1.59360264,95527.0,95526.0,0.0006791]
[1736345311780,1.6042897,95527.0,95526.0,0.0006791]
[1736345311984,1.6072897,95527.0,95526.0,0.0006791]
[1736345312598,1.62775966,95527.0,95526.0,0.0006791]
[1736345312773,1.63475966,95527.0,95526.0,0.0006791]
[1736345313965,1.63643966,95527.0,95526.0,0.0006791]
[1736345315006,1.57783966,95527.0,95526.0,0.0006791]
[1736345315320,1.63643966,95527.0,95526.0,0.0006791]
[1736345320576,1.57783966,95527.0,95526.0,0.0006791]
[1736345320940,1.63643966,95527.0,95526.0,0.0006791]
[1736345321695,0.90917988,95524.0,95523.0,5e-07]
[1736345321903,0.90917988,95524.0,95513.0,0.0001704]
[1736345321904,0.373,95514.0,95513.0,9e-07]
[1736345322104,0.559413,95505.0,95504.0,0.05069612]
[1736345322310,0.88624588,95494.0,95493.0,0.0001704]
[1736345322523,0.88624588,95494.0,95493.0,0.00023957]
[1736345322524,1.53675564,95494.0,95493.0,0.00023957]
[1736345323163,0.409452,95487.0,95470.0,0.0788]
[1736345323319,0.43675176,95487.0,95486.0,0.00032318]
[1736345323530,1.05996176,95487.0,95486.0,0.00032318]
[1736345323957,1.16426152,95487.0,95486.0,0.00032318]
[1736345324161,1.31426152,95487.0,95486.0,0.00032318]
[1736345324564,1.65550221,95487.0,95486.0,1.8e-07]
[1736345325218,1.55120245,95487.0,95486.0,1.8e-07]
[1736345325631,1.60984245,95487.0,95486.0,1.8e-07]
[1736345325836,1.55120245,95487.0,95486.0,1.8e-07]
[1736345326056,1.60584245,95487.0,95486.0,1.8e-07]
[1736345326473,1.60984245,95487.0,95486.0,1.8e-07]
[1736345326899,1.60584245,95487.0,95486.0,1.8e-07]
[1736345327399,1.60984245,95487.0,95486.0,1.8e-07]
[1736345327602,1.61884245,95487.0,95486.0,1.8e-07]
[1736345327784,1.61484245,95487.0,95486.0,1.8e-07]
[1736345327956,1.61884245,95487.0,95486.0,1.8e-07]
[1736345328497,1.60984245,95487.0,95486.0,1.8e-07]
[1736345328654,1.61884245,95487.0,95486.0,1.8e-07]
[1736345329067,1.65776078,95487.0,95486.0,1.8e-07]
[1736345329268,1.65376078,95487.0,95486.0,1.8e-07]
[1736345329649,1.65776078,95487.0,95486.0,1.8e-07]
[1736345330097,1.59912078,95487.0,95486.0,1.8e-07]
[1736345330302,1.65776078,95487.0,95486.0,1.8e-07]
[1736345330900,1.56020245,95487.0,95486.0,1.8e-07]
[1736345331284,1.60984245,95487.0,95486.0,1.8e-07]
[1736345331687,1.61884245,95487.0,95486.0,1.8e-07]
[1736345331892,1.60984245,95487.0,95486.0,1.8e-07]
[1736345332337,1.61884245,95487.0,95486.0,1.8e-07]
[1736345333218,1.31020245,95487.0,95486.0,1.8e-07]
[1736345333441,1.02595864,95487.0,95486.0,1.8e-07]
[1736345333652,0.96731864,95487.0,95486.0,1.8e-07]
[1736345333866,1.02595864,95487.0,95486.0,1.8e-07]
[1736345334014,1.02195864,95487.0,95486.0,1.8e-07]
[1736345334429,1.02595864,95487.0,95486.0,1.8e-07]
[1736345334628,1.02595864,95487.0,95486.0,0.07670018]
[1736345334955,1.02595864,95487.0,95486.0,0.0889802]
[1736345335156,1.01695864,95487.0,95486.0,0.0889802]
[1736345335467,1.02595864,95487.0,95486.0,0.07670018]
[1736345335677,1.01295864,95487.0,95486.0,0.07670018]
[1736345336155,1.01295864,95487.0,95486.0,0.07770018]
[1736345336364,1.01395864,95487.0,95486.0,0.07770018]
[1736345336592,1.01395864,95487.0,95486.0,0.07670018]
[1736345336799,1.01395864,95487.0,95486.0,0.07770018]
[1736345337006,1.01395864,95487.0,95486.0,0.0866284]
[1736345339259,0.52421,95487.0,95486.0,0.2960824]
[1736345339673,0.52421,95487.0,95486.0,0.3457824]
[1736345342677,0.52321,95487.0,95486.0,0.3447824]
[1736345343078,0.52421,95487.0,95486.0,0.3497824]
[1736345343280,0.52321,95487.0,95486.0,0.3477824]
[1736345343476,0.52321,95487.0,95486.0,0.3447824]
[1736345343836,0.52421,95487.0,95486.0,0.3507824]
[1736345344146,0.52321,95487.0,95486.0,0.3487824]
[1736345344295,0.52321,95487.0,95486.0,0.3507824]
[1736345344506,0.52421,95487.0,95486.0,0.3507824]
[1736345344774,0.52321,95487.0,95486.0,0.3487824]
[1736345344978,0.52321,95487.0,95486.0,0.3447824]
[1736345345999,0.52421,95487.0,95486.0,0.3467824]
[1736345346446,0.52421,95487.0,95486.0,0.3507824]
[1736345346848,0.52421,95487.0,95486.0,0.3467824]
[1736345347054,0.52321,95487.0,95486.0,0.3447824]
[1736345347204,0.52321,95487.0,95486.0,0.3487824]
[1736345347750,0.52421,95487.0,95486.0,0.3507824]
[1736345348953,0.62850976,95487.0,95486.0,0.3507824]
[1736345349371,0.62850976,95487.0,95486.0,0.1413284]
[1736345349790,0.62850976,95487.0,95486.0,0.00600018]
[1736345350013,0.97731864,95487.0,95486.0,1.8e-07]
[1736345350234,1.07731864,95487.0,95486.0,1.8e-07]
[1736345350414,1.07831864,95487.0,95486.0,0.00500018]
[1736345350872,1.07831864,95487.0,95486.0,0.00200018]
[1736345351023,1.2826184,95487.0,95486.0,0.00200018]
[1736345351260,1.17831864,95487.0,95486.0,0.00400018]
[1736345351451,1.17731864,95487.0,95486.0,0.00200018]
[1736345352415,1.09776898,95487.0,95486.0,0.00200018]
[1736345352622,1.45206874,95487.0,95486.0,1.8e-07]
[1736345352843,1.45406874,95487.0,95486.0,1.8e-07]
[1736345353479,1.45206874,95487.0,95486.0,1.8e-07]
[1736345353700,1.45506874,95487.0,95486.0,1.8e-07]
[1736345354143,0.409481,95474.0,95473.0,0.0001706]
[1736345354357,1.26807076,95474.0,95473.0,0.0002665]
[1736345354560,1.59487964,95474.0,95473.0,0.0002665]
[1736345355173,1.7772794,95474.0,95473.0,0.0002665]
[1736345355389,1.7832794,95474.0,95473.0,0.0002665]
[1736345356247,1.67897964,95474.0,95473.0,0.0002665]
[1736345356696,0.373,95469.0,95468.0,0.09641015]
[1736345356936,1.00050976,95469.0,95468.0,0.096461]
[1736345357381,1.32731864,95469.0,95468.0,0.096461]
[1736345358019,1.33131864,95469.0,95468.0,0.096461]
[1736345358407,1.4252431,95469.0,95468.0,0.046591]
[1736345359069,1.33131864,95469.0,95468.0,0.046591]
[1736345360144,1.38539864,95469.0,95468.0,0.046591]
[1736345360529,1.38939864,95469.0,95468.0,0.046591]
[1736345360726,1.40985183,95469.0,95468.0,0.046591]
[1736345360933,1.51415159,95469.0,95468.0,0.046591]
[1736345361292,1.51015159,95469.0,95468.0,0.046591]
[1736345361937,1.51415159,95469.0,95468.0,0.046591]
[1736345362514,1.40985183,95469.0,95468.0,0.046591]
[1736345363189,0.95831864,95469.0,95468.0,0.046591]
[1736345363393,1.01643864,95469.0,95468.0,0.046591]
[1736345363811,1.01243864,95469.0,95468.0,0.046591]
[1736345364426,1.01643864,95469.0,95468.0,0.046591]
[1736345364981,1.01243864,95469.0,95468.0,0.046591]
[1736345365391,1.01443864,95469.0,95468.0,0.046591]
[1736345366160,1.02343864,95469.0,95468.0,0.046591]
[1736345366788,1.23743864,95469.0,95468.0,0.046591]
[1736345367008,1.24343864,95469.0,95468.0,0.046591]
[1736345367167,1.23731257,95469.0,95468.0,0.046591]
[1736345367364,1.24031257,95469.0,95468.0,0.046591]
[1736345367851,1.23831257,95469.0,95468.0,0.046591]
[1736345368028,1.23731257,95469.0,95468.0,0.046591]
[1736345368390,1.29965855,95469.0,95468.0,0.046591]
[1736345368595,1.45765855,95469.0,95468.0,0.046591]
[1736345368792,1.45965855,95469.0,95468.0,0.046591]
[1736345369843,1.39531257,95469.0,95468.0,0.046591]
[1736345370046,1.39331257,95469.0,95468.0,0.046591]
[1736345370253,1.38531257,95469.0,95468.0,0.046591]
[1736345370456,1.38731257,95469.0,95468.0,0.046591]
[1736345370673,1.39531257,95469.0,95468.0,0.046591]
[1736345371002,1.49161233,95469.0,95468.0,0.046591]
[1736345371624,1.39531257,95469.0,95468.0,0.046591]
[1736345372205,1.41587806,95469.0,95468.0,0.046591]
[1736345373715,1.35775806,95469.0,95468.0,0.046591]
[1736345373918,0.96419257,95469.0,95468.0,0.046591]
[1736345374139,1.27231257,95469.0,95468.0,0.046591]
[1736345374346,1.39531257,95469.0,95468.0,0.046591]
[1736345375488,1.44149233,95469.0,95468.0,0.046591]
[1736345375693,1.39523257,95469.0,95468.0,0.046591]
[1736345376100,1.29523257,95469.0,95468.0,0.046591]
[1736345376296,1.39523257,95469.0,95468.0,0.046591]
[1736345380827,1.38523257,95469.0,95468.0,0.046591]
[1736345381292,1.39023257,95469.0,95468.0,0.046591]
[1736345381680,1.38523257,95469.0,95468.0,0.046591]
[1736345382088,1.39023257,95469.0,95468.0,0.046591]
[1736345382293,1.31819257,95469.0,95468.0,0.046591]
[1736345382471,1.27623257,95469.0,95468.0,0.046591]
[1736345382668,1.37623257,95469.0,95468.0,0.046591]
[1736345384000,1.39923257,95469.0,95468.0,0.046591]
[1736345384958,1.34119257,95469.0,95468.0,0.046591]
[1736345385164,1.29923257,95469.0,95468.0,0.093591]
[1736345385537,1.39923257,95469.0,95468.0,0.093591]
[1736345385752,1.29923257,95469.0,95468.0,0.093591]
[1736345385954,1.04923257,95469.0,95468.0,0.093591]
[1736345386130,1.04023257,95469.0,95468.0,0.093591]
[1736345386535,1.04923257,95469.0,95468.0,0.093591]
[1736345386782,1.04023257,95469.0,95468.0,0.093591]
[1736345386985,1.04423257,95469.0,95468.0,0.093591]
[1736345387392,1.04723257,95469.0,95468.0,0.093591]
[1736345387770,1.04423257,95469.0,95468.0,0.093591]
[1736345388180,1.04723257,95469.0,95468.0,0.093591]
[1736345389733,0.96619257,95469.0,95468.0,0.093591]
[1736345389914,1.02423257,95469.0,95468.0,0.093591]
[1736345390113,1.02423257,95469.0,95468.0,0.173791]
[1736345390314,1.02423257,95469.0,95468.0,0.18276738]
[1736345390545,1.02423257,95469.0,95468.0,0.173791]
[1736345391294,1.01223257,95469.0,95468.0,0.18276738]
[1736345391702,1.01423257,95469.0,95468.0,0.18276738]
[1736345391961,0.95619257,95469.0,95468.0,0.18276738]
[1736345392358,0.95419257,95469.0,95468.0,0.18276738]
[1736345392712,0.95419257,95469.0,95468.0,0.18376738]
[1736345392917,0.85001888,95469.0,95468.0,0.18376738]
[1736345393129,0.95431864,95469.0,95468.0,0.18376738]
[1736345393347,1.01235864,95469.0,95468.0,0.18376738]
[1736345393594,1.01235864,95469.0,95468.0,0.174791]
[1736345393748,1.01235864,95469.0,95468.0,0.18602665]
[1736345394104,1.01235864,95469.0,95468.0,0.174791]
[1736345394360,1.01335864,95469.0,95468.0,0.174791]
[1736345394562,1.01235864,95469.0,95468.0,0.19230424]
[1736345394769,1.01235864,95469.0,95468.0,0.19130424]
[1736345394948,1.01235864,95469.0,95468.0,0.18602665]
[1736345395602,1.01235864,95469.0,95468.0,0.173791]
[1736345395776,0.95431864,95469.0,95468.0,0.174791]
[1736345395983,1.01231864,95469.0,95468.0,0.174791]
[1736345396323,1.01231864,95469.0,95468.0,0.173791]
[1736345396520,1.01231864,95469.0,95468.0,0.175791]
[1736345396790,1.01231864,95469.0,95468.0,0.174791]
[1736345397337,1.01731864,95469.0,95468.0,0.174791]
[1736345397950,1.01731864,95469.0,95468.0,0.173791]
[1736345398195,1.01831864,95469.0,95468.0,0.173791]
[1736345400702,1.04131864,95469.0,95468.0,0.173791]
[1736345400913,1.04131864,95469.0,95468.0,0.126791]
[1736345403773,1.01831864,95469.0,95468.0,0.126791]
[1736345406397,1.04131864,95469.0,95468.0,0.126791]
[1736345406600,1.04131864,95469.0,95468.0,0.046591]
[1736345407489,1.04031864,95469.0,95468.0,0.046591]
[1736345407642,1.03531864,95469.0,95468.0,0.046591]
[1736345407847,1.04531864,95469.0,95468.0,0.046591]
[1736345408291,1.04331864,95469.0,95468.0,0.046591]
[1736345408753,1.04531864,95469.0,95468.0,0.046591]
[1736345408892,1.2996184,95469.0,95468.0,0.046591]
[1736345409068,1.3996184,95469.0,95468.0,0.046591]
[1736345409265,1.4996184,95469.0,95468.0,0.046591]
[1736345409519,1.53088357,95469.0,95468.0,0.046591]
[1736345409892,1.54164682,95469.0,95468.0,0.046591]
[1736345410645,1.53964682,95469.0,95468.0,0.046591]
[1736345410844,1.53164682,95469.0,95468.0,0.046591]
[1736345411059,1.54564682,95469.0,95468.0,5.085e-05]
[1736345411413,1.53664682,95469.0,95468.0,5.085e-05]
[1736345411614,0.67680888,95465.0,95464.0,2.5e-07]
[1736345411839,1.35858381,95465.0,95464.0,2.5e-07]
[1736345412856,1.43518381,95465.0,95464.0,2.5e-07]
[1736345414148,1.43918381,95465.0,95464.0,2.5e-07]
[1736345414581,0.55952,95456.0,95455.0,8.5e-07]
[1736345414779,1.21002976,95456.0,95455.0,7.6e-07]
[1736345415191,1.26429521,95456.0,95455.0,7.6e-07]
[1736345415824,1.26929521,95456.0,95455.0,7.6e-07]
[1736345416184,1.59610409,95456.0,95455.0,7.6e-07]
[1736345416580,1.65358409,95456.0,95455.0,7.6e-07]
[1736345417639,1.60831864,95456.0,95455.0,7.6e-07]
[1736345417839,1.84230259,95456.0,95455.0,7.6e-07]
[1736345418038,1.77082259,95456.0,95455.0,7.6e-07]
[1736345418262,1.82830259,95456.0,95455.0,7.6e-07]
[1736345418465,1.84230259,95456.0,95455.0,7.6e-07]
[1736345418668,1.79515264,95456.0,95455.0,7.6e-07]
[1736345419099,1.95482922,95456.0,95455.0,7.6e-07]
[1736345419310,1.72084527,95456.0,95455.0,7.6e-07]
[1736345419509,1.61864869,95456.0,95455.0,7.6e-07]
[1736345420226,1.43816869,95456.0,95455.0,7.6e-07]
[1736345420438,1.39564869,95456.0,95455.0,7.6e-07]
[1736345420784,1.49564869,95456.0,95455.0,7.6e-07]
[1736345421229,1.41864869,95456.0,95455.0,7.6e-07]
[1736345421470,1.41364869,95456.0,95455.0,7.6e-07]
[1736345421903,1.40964869,95456.0,95455.0,7.6e-07]
[1736345422305,1.24564869,95456.0,95455.0,7.6e-07]